[Event "Titled Tuesday Blitz May 16 Late 2023"]
[White "Liu, Casper"]
[Black "Seemann, Jakub"]
[WhiteFideId "1454153"]
[BlackFideId "21874697"]
[WhiteElo "2221"]
[BlackElo "2364"]
[Result "1-0"]
[Round "03"]
[TimeControl "180+2"]
[Date "2023.05.16"]
[WhiteClock "0:01:55"]
[BlackClock "0:00:30"]

1. e4 {[%clk 0:02:53]}  e6 {[%clk 0:02:59]} 2. d4 {[%clk 0:02:52]}  d5 {[%clk 0:03:00]} 3. e5 {[%clk 0:02:52]}  c5 {[%clk 0:03:00]} 4. c3 {[%clk 0:02:53]}  Bd7 {[%clk 0:03:01]} 5. Nf3 {[%clk 0:02:54]}  Qb6 {[%clk 0:03:01]} 6. Bd3 {[%clk 0:02:52]}  cxd4 {[%clk 0:03:00]} 7. cxd4 {[%clk 0:02:52]}  Bb5 {[%clk 0:03:01]} 8. O-O {[%clk 0:02:50]}  Bxd3 {[%clk 0:03:00]} 9. Qxd3 {[%clk 0:02:51]}  Nc6 {[%clk 0:03:01]} 10. Nc3 {[%clk 0:02:50]}  Nge7 {[%clk 0:02:59]} 11. Na4 {[%clk 0:02:51]}  Qd8 {[%clk 0:02:58]} 12. Bd2 {[%clk 0:02:47]}  Nf5 {[%clk 0:02:52]} 13. Rac1 {[%clk 0:02:46]}  Be7 {[%clk 0:02:50]} 14. Nc5 {[%clk 0:02:46]}  Bxc5 {[%clk 0:02:50]} 15. Rxc5 {[%clk 0:02:44]}  O-O {[%clk 0:02:50]} 16. Rfc1 {[%clk 0:02:42]}  a6 {[%clk 0:02:50]} 17. a3 {[%clk 0:02:41]}  Qd7 {[%clk 0:02:43]} 18. h4 {[%clk 0:02:35]}  Rfc8 {[%clk 0:02:39]} 19. g4 {[%clk 0:02:28]}  Nfe7 {[%clk 0:02:35]} 20. Ng5 {[%clk 0:02:28]}  g6 {[%clk 0:02:33]} 21. Qf3 {[%clk 0:02:27]}  Nd8 {[%clk 0:02:30]} 22. Qf6 {[%clk 0:02:22]}  b6 {[%clk 0:01:58]} 23. Nf3 {[%clk 0:02:04]}  Rxc5 {[%clk 0:00:37]} 24. Bh6 {[%clk 0:01:55]}  Rxc1+ {[%clk 0:00:30]} 25. Kg2 {[%clk 0:01:55]} 1-0


[Site "https://www.chess.com"]

[Event "Titled Tuesday Blitz May 16 Late 2023"]
[White "Marra, Eduardo da Costa"]
[Black "Vlassov, Nikolai"]
[WhiteFideId "2106990"]
[BlackFideId "4103360"]
[WhiteElo "2252"]
[BlackElo "2324"]
[Result "1-0"]
[Round "03"]
[TimeControl "180+2"]
[Date "2023.05.16"]
[WhiteClock "0:00:48"]
[BlackClock "0:00:00"]

1. d4 {[%clk 0:03:00]}  Nf6 {[%clk 0:02:59]} 2. Nc3 {[%clk 0:02:59]}  d5 {[%clk 0:02:59]} 3. Bf4 {[%clk 0:02:59]}  e6 {[%clk 0:02:58]} 4. Nf3 {[%clk 0:02:54]}  Bb4 {[%clk 0:02:54]} 5. a3 {[%clk 0:02:49]}  Bxc3+ {[%clk 0:02:54]} 6. bxc3 {[%clk 0:02:50]}  c5 {[%clk 0:02:54]} 7. dxc5 {[%clk 0:02:33]}  Qa5 {[%clk 0:02:51]} 8. Bd2 {[%clk 0:02:23]}  Qxc5 {[%clk 0:02:50]} 9. e3 {[%clk 0:02:20]}  Nc6 {[%clk 0:02:48]} 10. Nd4 {[%clk 0:02:15]}  O-O {[%clk 0:02:46]} 11. Nb3 {[%clk 0:02:14]}  Qd6 {[%clk 0:02:38]} 12. c4 {[%clk 0:02:14]}  d4 {[%clk 0:02:36]} 13. c5 {[%clk 0:02:10]}  Qe5 {[%clk 0:02:33]} 14. Qe2 {[%clk 0:02:04]}  Ne4 {[%clk 0:02:23]} 15. Rd1 {[%clk 0:01:48]}  Nxd2 {[%clk 0:02:20]} 16. Rxd2 {[%clk 0:01:47]}  dxe3 {[%clk 0:02:18]} 17. Qxe3 {[%clk 0:01:47]}  Qxe3+ {[%clk 0:02:18]} 18. fxe3 {[%clk 0:01:48]}  Rd8 {[%clk 0:02:17]} 19. Rxd8+ {[%clk 0:01:42]}  Nxd8 {[%clk 0:02:16]} 20. Bb5 {[%clk 0:01:43]}  Kf8 {[%clk 0:02:08]} 21. Ke2 {[%clk 0:01:39]}  Ke7 {[%clk 0:02:07]} 22. Rd1 {[%clk 0:01:39]}  Nc6 {[%clk 0:02:04]} 23. Bxc6 {[%clk 0:01:38]}  bxc6 {[%clk 0:02:04]} 24. Rd4 {[%clk 0:01:24]}  Bd7 {[%clk 0:01:41]} 25. Rb4 {[%clk 0:01:22]}  Kd8 {[%clk 0:01:27]} 26. Na5 {[%clk 0:01:19]}  Kc8 {[%clk 0:01:24]} 27. Nc4 {[%clk 0:01:16]}  Kd8 {[%clk 0:00:57]} 28. Nd6 {[%clk 0:01:14]}  Ke7 {[%clk 0:00:53]} 29. Rb7 {[%clk 0:01:14]}  f6 {[%clk 0:00:41]} 30. Kd3 {[%clk 0:01:14]}  g6 {[%clk 0:00:33]} 31. Kc3 {[%clk 0:01:14]}  e5 {[%clk 0:00:20]} 32. Kb4 {[%clk 0:01:13]}  a5+ {[%clk 0:00:19]} 33. Ka4 {[%clk 0:01:13]}  Ke6 {[%clk 0:00:19]} 34. c4 {[%clk 0:01:13]}  f5 {[%clk 0:00:19]} 35. Rb2 {[%clk 0:01:08]}  g5 {[%clk 0:00:17]} 36. Nb7 {[%clk 0:01:04]}  f4 {[%clk 0:00:16]} 37. e4 {[%clk 0:00:52]}  g4 {[%clk 0:00:16]} 38. Rd2 {[%clk 0:00:49]}  f3 {[%clk 0:00:11]} 39. gxf3 {[%clk 0:00:49]}  gxf3 {[%clk 0:00:12]} 40. Rf2 {[%clk 0:00:49]}  Rf8 {[%clk 0:00:10]} 41. Kxa5 {[%clk 0:00:49]}  Rf4 {[%clk 0:00:00]} 42. Nd6 {[%clk 0:00:48]} 1-0


[Site "https://www.chess.com"]

[Event "Titled Tuesday Blitz May 16 Late 2023"]
[White "Defend1r"]
[Black "Davtyan, David Arm."]
[BlackFideId "13310046"]
[WhiteElo "2637"]
[BlackElo "2274"]
[Result "1-0"]
[Round "03"]
[TimeControl "180+2"]
[Date "2023.05.16"]
[WhiteClock "0:01:05"]
[BlackClock "0:00:14"]

1. e4 {[%clk 0:03:00]}  e5 {[%clk 0:02:57]} 2. Nf3 {[%clk 0:03:00]}  Nf6 {[%clk 0:02:58]} 3. Nxe5 {[%clk 0:03:00]}  d6 {[%clk 0:02:58]} 4. Nf3 {[%clk 0:02:58]}  Nxe4 {[%clk 0:02:56]} 5. Nc3 {[%clk 0:02:58]}  Nxc3 {[%clk 0:02:55]} 6. dxc3 {[%clk 0:02:59]}  Be7 {[%clk 0:02:56]} 7. Be3 {[%clk 0:02:57]}  Nc6 {[%clk 0:02:52]} 8. Qd2 {[%clk 0:02:56]}  Be6 {[%clk 0:02:49]} 9. O-O-O {[%clk 0:02:55]}  Qd7 {[%clk 0:02:49]} 10. Kb1 {[%clk 0:02:54]}  a5 {[%clk 0:02:38]} 11. Nd4 {[%clk 0:02:52]}  Nxd4 {[%clk 0:02:29]} 12. cxd4 {[%clk 0:02:53]}  c6 {[%clk 0:02:24]} 13. h4 {[%clk 0:02:46]}  a4 {[%clk 0:02:23]} 14. a3 {[%clk 0:02:46]}  b5 {[%clk 0:02:16]} 15. h5 {[%clk 0:02:40]}  Bd5 {[%clk 0:02:16]} 16. h6 {[%clk 0:02:38]}  g6 {[%clk 0:02:16]} 17. Bg5 {[%clk 0:02:30]}  O-O {[%clk 0:02:04]} 18. Re1 {[%clk 0:02:28]}  Bxg5 {[%clk 0:02:03]} 19. Qxg5 {[%clk 0:02:29]}  f6 {[%clk 0:02:03]} 20. Qg3 {[%clk 0:02:26]}  Rae8 {[%clk 0:02:00]} 21. Bd3 {[%clk 0:02:26]}  f5 {[%clk 0:01:55]} 22. f3 {[%clk 0:02:16]}  Rxe1+ {[%clk 0:01:51]} 23. Rxe1 {[%clk 0:02:15]}  Re8 {[%clk 0:01:51]} 24. Qh4 {[%clk 0:02:04]}  Rxe1+ {[%clk 0:01:35]} 25. Qxe1 {[%clk 0:02:05]}  Kf7 {[%clk 0:01:33]} 26. Qe3 {[%clk 0:01:56]}  Qe6 {[%clk 0:01:27]} 27. Qxe6+ {[%clk 0:01:52]}  Kxe6 {[%clk 0:01:28]} 28. Kc1 {[%clk 0:01:52]}  Kf6 {[%clk 0:01:27]} 29. Kd2 {[%clk 0:01:39]}  Kg5 {[%clk 0:01:27]} 30. Kc3 {[%clk 0:01:38]}  Kxh6 {[%clk 0:01:26]} 31. Kb4 {[%clk 0:01:38]}  Kg5 {[%clk 0:01:24]} 32. c4 {[%clk 0:01:38]}  bxc4 {[%clk 0:00:53]} 33. Bxc4 {[%clk 0:01:35]}  Bxc4 {[%clk 0:00:51]} 34. Kxc4 {[%clk 0:01:36]}  h5 {[%clk 0:00:50]} 35. b3 {[%clk 0:01:33]}  d5+ {[%clk 0:00:44]} 36. Kc3 {[%clk 0:01:32]}  axb3 {[%clk 0:00:44]} 37. Kxb3 {[%clk 0:01:33]}  Kf4 {[%clk 0:00:44]} 38. a4 {[%clk 0:01:31]}  Kg3 {[%clk 0:00:45]} 39. a5 {[%clk 0:01:30]}  Kxg2 {[%clk 0:00:46]} 40. a6 {[%clk 0:01:30]}  h4 {[%clk 0:00:46]} 41. a7 {[%clk 0:01:30]}  h3 {[%clk 0:00:47]} 42. a8=Q {[%clk 0:01:30]}  h2 {[%clk 0:00:48]} 43. Qa2+ {[%clk 0:01:29]}  Kg3 {[%clk 0:00:43]} 44. Qb1 {[%clk 0:01:29]}  Kxf3 {[%clk 0:00:43]} 45. Qf1+ {[%clk 0:01:23]}  Kg3 {[%clk 0:00:40]} 46. Kc3 {[%clk 0:01:23]}  f4 {[%clk 0:00:38]} 47. Kd3 {[%clk 0:01:23]}  g5 {[%clk 0:00:27]} 48. Ke2 {[%clk 0:01:22]}  g4 {[%clk 0:00:27]} 49. Qh1 {[%clk 0:01:14]}  f3+ {[%clk 0:00:27]} 50. Ke3 {[%clk 0:01:14]}  Kh3 {[%clk 0:00:23]} 51. Kf2 {[%clk 0:01:10]}  c5 {[%clk 0:00:20]} 52. dxc5 {[%clk 0:01:09]}  d4 {[%clk 0:00:21]} 53. c6 {[%clk 0:01:10]}  d3 {[%clk 0:00:21]} 54. c7 {[%clk 0:01:09]}  d2 {[%clk 0:00:18]} 55. c8=Q {[%clk 0:01:07]}  d1=N+ {[%clk 0:00:17]} 56. Qxd1 {[%clk 0:01:07]}  Kh4 {[%clk 0:00:14]} 57. Qh8+ {[%clk 0:01:05]} 1-0


[Site "https://www.chess.com"]

[Event "Titled Tuesday Blitz May 16 Late 2023"]
[White "Bouget, Alexandre"]
[Black "Korchmar, Vasiliy"]
[WhiteFideId "681318"]
[BlackFideId "24131750"]
[WhiteElo "2189"]
[BlackElo "2370"]
[Result "0-1"]
[Round "03"]
[TimeControl "180+2"]
[Date "2023.05.16"]
[WhiteClock "0:00:03"]
[BlackClock "0:00:11"]

1. d4 {[%clk 0:02:56]}  Nf6 {[%clk 0:02:59]} 2. c4 {[%clk 0:02:55]}  c6 {[%clk 0:03:00]} 3. Nc3 {[%clk 0:02:54]}  d5 {[%clk 0:03:00]} 4. Nf3 {[%clk 0:02:53]}  e6 {[%clk 0:03:00]} 5. e3 {[%clk 0:02:53]}  Nbd7 {[%clk 0:03:00]} 6. Qc2 {[%clk 0:02:52]}  Bd6 {[%clk 0:03:00]} 7. b3 {[%clk 0:02:52]}  e5 {[%clk 0:02:53]} 8. Be2 {[%clk 0:02:50]}  e4 {[%clk 0:02:52]} 9. Nd2 {[%clk 0:02:49]}  a6 {[%clk 0:02:50]} 10. Bb2 {[%clk 0:02:48]}  O-O {[%clk 0:02:48]} 11. O-O {[%clk 0:02:47]}  Re8 {[%clk 0:02:46]} 12. Rac1 {[%clk 0:02:41]}  Nf8 {[%clk 0:02:45]} 13. cxd5 {[%clk 0:02:34]}  cxd5 {[%clk 0:02:46]} 14. Rfe1 {[%clk 0:02:31]}  Ng6 {[%clk 0:02:45]} 15. f3 {[%clk 0:02:30]}  exf3 {[%clk 0:02:16]} 16. Bxf3 {[%clk 0:02:31]}  Ng4 {[%clk 0:02:09]} 17. Nf1 {[%clk 0:02:29]}  Qh4 {[%clk 0:02:05]} 18. g3 {[%clk 0:02:20]}  Qg5 {[%clk 0:02:01]} 19. Nxd5 {[%clk 0:02:16]}  Be6 {[%clk 0:01:33]} 20. Nf4 {[%clk 0:02:14]}  Nxe3 {[%clk 0:01:26]} 21. Nxe6 {[%clk 0:01:15]}  Nxc2 {[%clk 0:01:24]} 22. Nxg5 {[%clk 0:01:06]}  Nxe1 {[%clk 0:01:23]} 23. Bxb7 {[%clk 0:01:03]}  Nd3 {[%clk 0:01:04]} 24. Bxa8 {[%clk 0:00:59]}  Nxc1 {[%clk 0:01:04]} 25. Bxc1 {[%clk 0:01:00]}  Rxa8 {[%clk 0:01:03]} 26. Ne3 {[%clk 0:00:54]}  Re8 {[%clk 0:00:54]} 27. Kf2 {[%clk 0:00:51]}  Bb8 {[%clk 0:00:42]} 28. Nc4 {[%clk 0:00:50]}  Ba7 {[%clk 0:00:43]} 29. Be3 {[%clk 0:00:48]}  Ne7 {[%clk 0:00:41]} 30. Nd6 {[%clk 0:00:40]}  Rd8 {[%clk 0:00:34]} 31. Ngxf7 {[%clk 0:00:38]}  Rf8 {[%clk 0:00:34]} 32. d5 {[%clk 0:00:31]}  Bb8 {[%clk 0:00:17]} 33. Bf4 {[%clk 0:00:29]}  Nxd5 {[%clk 0:00:13]} 34. Nc8 {[%clk 0:00:09]}  Rxc8 {[%clk 0:00:11]} 35. Bxb8 {[%clk 0:00:03]}  Kxf7 {[%clk 0:00:11]} 0-1


[Site "https://www.chess.com"]

[Event "Titled Tuesday Blitz May 16 Late 2023"]
[White "Wizard_of_Odds"]
[Black "TimGrutter03"]
[WhiteElo "2443"]
[BlackElo "2632"]
[Result "1/2-1/2"]
[Round "03"]
[TimeControl "180+2"]
[Date "2023.05.16"]
[WhiteClock "0:00:04"]
[BlackClock "0:00:02"]

1. Nf3 {[%clk 0:02:59]}  g6 {[%clk 0:03:00]} 2. h4 {[%clk 0:02:56]}  Bg7 {[%clk 0:03:01]} 3. h5 {[%clk 0:02:56]}  c5 {[%clk 0:02:57]} 4. c4 {[%clk 0:02:54]}  Nc6 {[%clk 0:02:57]} 5. d3 {[%clk 0:02:50]}  d6 {[%clk 0:02:53]} 6. Nc3 {[%clk 0:02:46]}  Bg4 {[%clk 0:02:53]} 7. h6 {[%clk 0:02:38]}  Bxc3+ {[%clk 0:02:41]} 8. bxc3 {[%clk 0:02:39]}  Bxf3 {[%clk 0:02:41]} 9. gxf3 {[%clk 0:02:34]}  e6 {[%clk 0:02:39]} 10. Rb1 {[%clk 0:02:28]}  b6 {[%clk 0:02:36]} 11. f4 {[%clk 0:02:22]}  Rc8 {[%clk 0:02:32]} 12. Qa4 {[%clk 0:02:19]}  Qd7 {[%clk 0:02:31]} 13. Bg2 {[%clk 0:02:16]}  Nf6 {[%clk 0:02:26]} 14. Bf3 {[%clk 0:02:06]}  O-O {[%clk 0:02:12]} 15. Bd2 {[%clk 0:01:54]}  Qc7 {[%clk 0:02:06]} 16. Kf1 {[%clk 0:01:39]}  Ne7 {[%clk 0:01:59]} 17. e4 {[%clk 0:01:34]}  d5 {[%clk 0:01:48]} 18. cxd5 {[%clk 0:01:31]}  exd5 {[%clk 0:01:48]} 19. e5 {[%clk 0:01:31]}  Nd7 {[%clk 0:01:33]} 20. Bg4 {[%clk 0:01:13]}  Rcd8 {[%clk 0:01:12]} 21. Re1 {[%clk 0:01:13]}  Kh8 {[%clk 0:00:42]} 22. Kg2 {[%clk 0:01:06]}  Nf5 {[%clk 0:00:38]} 23. Bxf5 {[%clk 0:01:03]}  gxf5 {[%clk 0:00:39]} 24. Rh5 {[%clk 0:01:01]}  Rg8+ {[%clk 0:00:38]} 25. Kh2 {[%clk 0:00:58]}  Rg6 {[%clk 0:00:36]} 26. Rg1 {[%clk 0:00:54]}  Rdg8 {[%clk 0:00:31]} 27. Rg3 {[%clk 0:00:54]}  Nf8 {[%clk 0:00:24]} 28. Qb3 {[%clk 0:00:48]}  Qd7 {[%clk 0:00:22]} 29. c4 {[%clk 0:00:42]}  d4 {[%clk 0:00:22]} 30. Qd1 {[%clk 0:00:39]}  Qe6 {[%clk 0:00:21]} 31. Qf3 {[%clk 0:00:38]}  Rxh6 {[%clk 0:00:18]} 32. Rgh3 {[%clk 0:00:38]}  Rgg6 {[%clk 0:00:17]} 33. Qa8 {[%clk 0:00:37]}  Kg7 {[%clk 0:00:16]} 34. Qxa7 {[%clk 0:00:36]}  Rxh5 {[%clk 0:00:16]} 35. Rxh5 {[%clk 0:00:37]}  Rh6 {[%clk 0:00:16]} 36. Rxh6 {[%clk 0:00:36]}  Qxh6+ {[%clk 0:00:17]} 37. Kg2 {[%clk 0:00:35]}  Ng6 {[%clk 0:00:16]} 38. Kf1 {[%clk 0:00:29]}  Qh3+ {[%clk 0:00:14]} 39. Ke2 {[%clk 0:00:28]}  Qg4+ {[%clk 0:00:14]} 40. Kf1 {[%clk 0:00:26]}  Qd1+ {[%clk 0:00:13]} 41. Be1 {[%clk 0:00:25]}  Qxd3+ {[%clk 0:00:13]} 42. Kg1 {[%clk 0:00:24]}  Nxf4 {[%clk 0:00:12]} 43. Qxb6 {[%clk 0:00:23]}  Ne2+ {[%clk 0:00:07]} 44. Kf1 {[%clk 0:00:18]}  Nf4+ {[%clk 0:00:05]} 45. Kg1 {[%clk 0:00:18]}  Nh5 {[%clk 0:00:04]} 46. Qd8 {[%clk 0:00:12]}  h6 {[%clk 0:00:02]} 47. Qh4 {[%clk 0:00:09]}  Qe4 {[%clk 0:00:02]} 48. Qxh5 {[%clk 0:00:05]}  Qxe1+ {[%clk 0:00:02]} 49. Kg2 {[%clk 0:00:06]}  Qxe5 {[%clk 0:00:03]} 50. Qh3 {[%clk 0:00:04]}  Qe4+ {[%clk 0:00:01]} 51. Kh2 {[%clk 0:00:04]}  f4 {[%clk 0:00:02]} 52. Qg4+ {[%clk 0:00:04]}  Kh7 {[%clk 0:00:02]} 53. Qd7 {[%clk 0:00:04]}  Qg6 {[%clk 0:00:02]} 54. Qd5 {[%clk 0:00:03]}  Qg5 {[%clk 0:00:01]} 55. Qxf7+ {[%clk 0:00:03]}  Kh8 {[%clk 0:00:02]} 56. Qf8+ {[%clk 0:00:03]}  Kh7 {[%clk 0:00:02]} 57. Qf7+ {[%clk 0:00:03]}  Kh8 {[%clk 0:00:02]} 58. Qf8+ {[%clk 0:00:04]}  Kh7 {[%clk 0:00:02]} 59. Qf7+ {[%clk 0:00:04]} 1/2-1/2


[Site "https://www.chess.com"]

[Event "Titled Tuesday Blitz May 16 Late 2023"]
[White "Manukyan, Sargis A."]
[Black "Yeritsyan, Hayk"]
[WhiteFideId "13303970"]
[BlackFideId "13307320"]
[WhiteElo "2187"]
[BlackElo "2435"]
[Result "1-0"]
[Round "03"]
[TimeControl "180+2"]
[Date "2023.05.16"]
[WhiteClock "0:02:20"]
[BlackClock "0:01:28"]

1. d4 {[%clk 0:03:00]}  d5 {[%clk 0:02:54]} 2. c4 {[%clk 0:03:00]}  e6 {[%clk 0:02:48]} 3. Nc3 {[%clk 0:03:01]}  Nf6 {[%clk 0:02:47]} 4. Nf3 {[%clk 0:03:01]}  Nbd7 {[%clk 0:02:47]} 5. Bg5 {[%clk 0:02:58]}  c6 {[%clk 0:02:47]} 6. cxd5 {[%clk 0:02:58]}  exd5 {[%clk 0:02:43]} 7. e3 {[%clk 0:02:58]}  Be7 {[%clk 0:02:43]} 8. Bd3 {[%clk 0:02:58]}  O-O {[%clk 0:02:44]} 9. Qc2 {[%clk 0:02:58]}  Re8 {[%clk 0:02:44]} 10. O-O {[%clk 0:02:58]}  Nf8 {[%clk 0:02:40]} 11. Bxf6 {[%clk 0:02:59]}  Bxf6 {[%clk 0:02:40]} 12. b4 {[%clk 0:02:59]}  Be6 {[%clk 0:02:38]} 13. Rab1 {[%clk 0:02:55]}  Rc8 {[%clk 0:02:38]} 14. Bf5 {[%clk 0:02:50]}  g6 {[%clk 0:02:26]} 15. Bxe6 {[%clk 0:02:50]}  Nxe6 {[%clk 0:02:21]} 16. Qd3 {[%clk 0:02:50]}  a6 {[%clk 0:02:09]} 17. a4 {[%clk 0:02:50]}  Qd6 {[%clk 0:02:09]} 18. b5 {[%clk 0:02:39]}  axb5 {[%clk 0:02:10]} 19. axb5 {[%clk 0:02:39]}  Red8 {[%clk 0:02:02]} 20. bxc6 {[%clk 0:02:39]}  bxc6 {[%clk 0:02:02]} 21. Na4 {[%clk 0:02:33]}  c5 {[%clk 0:01:58]} 22. dxc5 {[%clk 0:02:33]}  Nxc5 {[%clk 0:01:57]} 23. Nxc5 {[%clk 0:02:33]}  Rxc5 {[%clk 0:01:58]} 24. Rfd1 {[%clk 0:02:34]}  Rdc8 {[%clk 0:01:52]} 25. g3 {[%clk 0:02:32]}  Kg7 {[%clk 0:01:52]} 26. Kg2 {[%clk 0:02:27]}  Ra8 {[%clk 0:01:45]} 27. Rb5 {[%clk 0:02:24]}  Ra2 {[%clk 0:01:31]} 28. Rxc5 {[%clk 0:02:20]}  Qxc5 {[%clk 0:01:32]} 29. Qxd5 {[%clk 0:02:20]}  Qxe3 {[%clk 0:01:28]} 30. Qxa2 {[%clk 0:02:20]} 1-0


[Site "https://www.chess.com"]

[Event "Titled Tuesday Blitz May 16 Late 2023"]
[White "Kielinkei"]
[Black "Melikyan, Gnel"]
[BlackFideId "54109990"]
[WhiteElo "2418"]
[BlackElo "2138"]
[Result "1-0"]
[Round "03"]
[TimeControl "180+2"]
[Date "2023.05.16"]
[WhiteClock "0:00:24"]
[BlackClock "0:00:14"]

1. Nf3 {[%clk 0:03:00]}  d6 {[%clk 0:02:43]} 2. d4 {[%clk 0:03:00]}  Nc6 {[%clk 0:02:41]} 3. e4 {[%clk 0:02:57]}  e5 {[%clk 0:02:42]} 4. dxe5 {[%clk 0:02:56]}  Nxe5 {[%clk 0:02:42]} 5. Nxe5 {[%clk 0:02:56]}  dxe5 {[%clk 0:02:43]} 6. Qxd8+ {[%clk 0:02:56]}  Kxd8 {[%clk 0:02:44]} 7. Bc4 {[%clk 0:02:55]}  f6 {[%clk 0:02:44]} 8. c3 {[%clk 0:02:52]}  Bd6 {[%clk 0:02:44]} 9. Be3 {[%clk 0:02:52]}  Ke7 {[%clk 0:02:44]} 10. Nd2 {[%clk 0:02:50]}  Be6 {[%clk 0:02:45]} 11. Ke2 {[%clk 0:02:46]}  a6 {[%clk 0:02:45]} 12. b4 {[%clk 0:02:46]}  Rd8 {[%clk 0:02:44]} 13. a4 {[%clk 0:02:45]}  Kf7 {[%clk 0:02:41]} 14. a5 {[%clk 0:02:43]}  Ne7 {[%clk 0:02:38]} 15. Rhd1 {[%clk 0:02:37]}  Rd7 {[%clk 0:02:30]} 16. Bxe6+ {[%clk 0:02:36]}  Kxe6 {[%clk 0:02:30]} 17. Nb3 {[%clk 0:02:36]}  Rhd8 {[%clk 0:02:28]} 18. Rd2 {[%clk 0:02:32]}  Nc6 {[%clk 0:02:19]} 19. Rad1 {[%clk 0:02:29]}  Be7 {[%clk 0:02:16]} 20. Rxd7 {[%clk 0:02:25]}  Rxd7 {[%clk 0:02:17]} 21. Rxd7 {[%clk 0:02:26]}  Kxd7 {[%clk 0:02:18]} 22. Bc5 {[%clk 0:02:23]}  Bd6 {[%clk 0:02:18]} 23. Kd3 {[%clk 0:02:17]}  Nd8 {[%clk 0:02:16]} 24. Bxd6 {[%clk 0:02:10]}  cxd6 {[%clk 0:02:16]} 25. Nd2 {[%clk 0:02:11]}  Kc6 {[%clk 0:02:13]} 26. Nc4 {[%clk 0:01:51]}  d5 {[%clk 0:02:09]} 27. exd5+ {[%clk 0:01:52]}  Kxd5 {[%clk 0:02:09]} 28. Ne3+ {[%clk 0:01:51]}  Kc6 {[%clk 0:02:02]} 29. Ke4 {[%clk 0:01:39]}  g6 {[%clk 0:01:54]} 30. Nd5 {[%clk 0:01:30]}  f5+ {[%clk 0:01:47]} 31. Kxe5 {[%clk 0:01:29]}  Nf7+ {[%clk 0:01:48]} 32. Kd4 {[%clk 0:01:27]}  Ng5 {[%clk 0:01:39]} 33. Nf6 {[%clk 0:01:23]}  Kd6 {[%clk 0:01:36]} 34. h4 {[%clk 0:01:19]}  Ne6+ {[%clk 0:01:35]} 35. Kc4 {[%clk 0:01:15]}  Nf4 {[%clk 0:01:29]} 36. g3 {[%clk 0:01:14]}  Nh3 {[%clk 0:01:27]} 37. Nxh7 {[%clk 0:01:02]}  Nxf2 {[%clk 0:01:27]} 38. Nf8 {[%clk 0:01:01]}  Ne4 {[%clk 0:01:25]} 39. Nxg6 {[%clk 0:01:00]}  Nxg3 {[%clk 0:01:25]} 40. Kd4 {[%clk 0:00:59]}  Ke6 {[%clk 0:01:13]} 41. Nf4+ {[%clk 0:00:55]}  Kf6 {[%clk 0:01:13]} 42. c4 {[%clk 0:00:54]}  Ne4 {[%clk 0:01:08]} 43. b5 {[%clk 0:00:53]}  axb5 {[%clk 0:01:05]} 44. cxb5 {[%clk 0:00:54]}  Nd6 {[%clk 0:01:04]} 45. Kc5 {[%clk 0:00:52]}  Nc8 {[%clk 0:01:04]} 46. Nd5+ {[%clk 0:00:38]}  Ke5 {[%clk 0:01:04]} 47. Nb6 {[%clk 0:00:31]}  Nxb6 {[%clk 0:00:26]} 48. Kxb6 {[%clk 0:00:31]}  f4 {[%clk 0:00:27]} 49. a6 {[%clk 0:00:25]}  f3 {[%clk 0:00:14]} 50. axb7 {[%clk 0:00:24]} 1-0


[Site "https://www.chess.com"]

[Event "Titled Tuesday Blitz May 16 Late 2023"]
[White "D`Arruda, Ricardo D."]
[Black "Adan Bermudez, Sergio"]
[WhiteFideId "100692"]
[BlackFideId "2292726"]
[WhiteElo "2403"]
[BlackElo "2292"]
[Result "1/2-1/2"]
[Round "03"]
[TimeControl "180+2"]
[Date "2023.05.16"]
[WhiteClock "0:00:59"]
[BlackClock "0:00:13"]

1. Nf3 {[%clk 0:02:46]}  d6 {[%clk 0:02:59]} 2. d4 {[%clk 0:02:46]}  g6 {[%clk 0:02:59]} 3. Nc3 {[%clk 0:02:46]}  Bg7 {[%clk 0:02:59]} 4. e4 {[%clk 0:02:47]}  a6 {[%clk 0:03:00]} 5. Bg5 {[%clk 0:02:47]}  h6 {[%clk 0:02:57]} 6. Bh4 {[%clk 0:02:46]}  Nf6 {[%clk 0:02:56]} 7. Qd2 {[%clk 0:02:46]}  b5 {[%clk 0:02:54]} 8. Bd3 {[%clk 0:02:45]}  Bb7 {[%clk 0:02:40]} 9. a3 {[%clk 0:02:44]}  c5 {[%clk 0:02:35]} 10. e5 {[%clk 0:02:39]}  cxd4 {[%clk 0:02:25]} 11. exf6 {[%clk 0:02:37]}  dxc3 {[%clk 0:02:25]} 12. Qxc3 {[%clk 0:02:37]}  Bxf6 {[%clk 0:02:22]} 13. Bxf6 {[%clk 0:02:36]}  exf6 {[%clk 0:02:23]} 14. O-O-O {[%clk 0:02:32]}  O-O {[%clk 0:02:19]} 15. Rhe1 {[%clk 0:02:22]}  Nd7 {[%clk 0:02:15]} 16. Qd4 {[%clk 0:02:18]}  Ne5 {[%clk 0:02:12]} 17. Be2 {[%clk 0:02:16]}  Rc8 {[%clk 0:01:52]} 18. Qxd6 {[%clk 0:02:12]}  Qxd6 {[%clk 0:01:22]} 19. Rxd6 {[%clk 0:02:13]}  Be4 {[%clk 0:01:22]} 20. c3 {[%clk 0:02:07]}  Bxf3 {[%clk 0:01:19]} 21. gxf3 {[%clk 0:02:01]}  Rfd8 {[%clk 0:01:17]} 22. Rxa6 {[%clk 0:01:54]}  Re8 {[%clk 0:01:12]} 23. Rd1 {[%clk 0:01:49]}  Nc4 {[%clk 0:01:03]} 24. Bxc4 {[%clk 0:01:48]}  bxc4 {[%clk 0:01:02]} 25. Rxf6 {[%clk 0:01:47]}  Re2 {[%clk 0:01:01]} 26. Rd2 {[%clk 0:01:47]}  Re1+ {[%clk 0:00:58]} 27. Kc2 {[%clk 0:01:46]}  Rce8 {[%clk 0:00:57]} 28. Rc6 {[%clk 0:01:42]}  Rh1 {[%clk 0:00:48]} 29. a4 {[%clk 0:01:37]}  Ree1 {[%clk 0:00:41]} 30. Rxc4 {[%clk 0:01:35]}  Rxh2 {[%clk 0:00:39]} 31. a5 {[%clk 0:01:35]}  Ra1 {[%clk 0:00:39]} 32. b4 {[%clk 0:01:31]}  Rh3 {[%clk 0:00:29]} 33. Kb2 {[%clk 0:01:30]}  Rhh1 {[%clk 0:00:24]} 34. Rcd4 {[%clk 0:01:14]}  Rhb1+ {[%clk 0:00:20]} 35. Kc2 {[%clk 0:01:13]}  Rc1+ {[%clk 0:00:20]} 36. Kb3 {[%clk 0:01:12]}  h5 {[%clk 0:00:20]} 37. b5 {[%clk 0:01:10]}  Rxa5 {[%clk 0:00:19]} 38. Rb4 {[%clk 0:01:09]}  Ra8 {[%clk 0:00:17]} 39. b6 {[%clk 0:01:09]}  Rb8 {[%clk 0:00:17]} 40. Rb2 {[%clk 0:01:04]}  h4 {[%clk 0:00:16]} 41. b7 {[%clk 0:01:00]}  h3 {[%clk 0:00:15]} 42. Rh4 {[%clk 0:01:00]}  Rxb7+ {[%clk 0:00:15]} 43. Ka2 {[%clk 0:00:58]}  Ra7+ {[%clk 0:00:14]} 44. Kb3 {[%clk 0:00:59]}  Rb7+ {[%clk 0:00:14]} 45. Ka2 {[%clk 0:00:59]}  Ra7+ {[%clk 0:00:14]} 46. Kb3 {[%clk 0:00:59]}  Rb7+ {[%clk 0:00:13]} 1/2-1/2


[Site "https://www.chess.com"]